[Event "XII Paracin Festival 2019"]
[Site "Paracin"]
[Date "2019.07.12"]
[Round "9.18"]
[White "Ozsoy, Alimert"]
[Black "Avalyan, Artur"]
[Result "0-1"]
[ECO "C18"]
[WhiteElo "2087"]
[BlackElo "2351"]
[Annotator "ChessBase"]
[PlyCount "112"]
[EventDate "2019.07.05"]
[EventType "swiss"]
[EventCountry "SRB"]
[SourceTitle "playchess.com"]
[Source "ChessBase"]
[SourceQuality "1"]
[TimeControl "5400+30"]

1. e4 e6 2. d4 d5 3. Nc3 Bb4 4. e5 Ne7 5. a3 Bxc3+ 6. bxc3 {[%emt 0:00:37]} c5 {[%emt 0:01:29]} 7. Qg4 {[%emt 0:00:18]} Qc7 {[%emt 0:00:08]} 8. Qxg7 {[%emt 0:00:16]} Rg8 {[%emt 0:00:04]} 9. Qxh7 {[%emt 0:00:11]} cxd4 {[%emt 0:00:03]} 10. Ne2 {[%emt 0:00:16]} Nbc6 {[%emt 0:00:07]} 11. f4 {[%emt 0:00:42]} Bd7 {[%emt 0:00:04]} 12. h4 {[%emt 0:01:07]} dxc3 {[%emt 0:00:21]} 13. h5 {[%emt 0:01:42]} O-O-O {[%emt 0:00:05]} 14. Qd3 {[%emt 0:01:58]} Kb8 {[%emt 0:00:02]} 15. Qxc3 {[%emt 0:00:27]} d4 {[%emt 0:01:24]} 16. Qc4 {[%emt 0:00:56]} Nf5 {[%emt 0:26:55]} 17. h6 {[%emt 0:03:45]} Rg6 {[%emt 0:00:32]} 18. h7 {[%emt 0:06:14]} Rh8 {[%emt 0:00:03]} 19. Rb1 {[%emt 0:04:50]} Rg7 {[%emt 0:00:56]} 20. Kf2 {[%emt 0:02:24]} Rgxh7 {[%emt 0:12:55]} 21. Rxh7 {[%emt 0:00:30]} Rxh7 {[%emt 0:00:03]} 22. g3 {[%emt 0:07:51]} Nce7 {[%emt 0:26:36]} 23. Qxc7+ {[%emt 0:17:41]} Kxc7 {[%emt 0:00:03]} 24. Bb2 {[%emt 0:03:30]} Bc6 {[%emt 0:05:09]} 25. Nxd4 {[%emt 0:07:26]} Rh2+ {[%emt 0:00:08]} 26. Kg1 {[%emt 0:00:49]} Rh1+ {[%emt 0:00:04]} 27. Kf2 {[%emt 0:00:06]} Nxd4 {[%emt 0:00:59]} 28. Bxd4 {[%emt 0:00:13]} b6 {[%emt 0:02:58]} 29. c3 {[%emt 0:03:54]} Rh2+ {[%emt 0:03:30]} 30. Kg1 {[%emt 0:02:02]} Rh1+ {[%emt 0:00:21]} 31. Kf2 {[%emt 0:00:04]} Rh2+ {[%emt 0:00:04]} 32. Kg1 {[%emt 0:00:03]} Ra2 {[%emt 0:00:07]} 33. c4 {[%emt 0:02:11]} Rxa3 {[%emt 0:01:35]} 34. Bf2 {[%emt 0:05:23]} Nf5 {[%emt 0:00:27]} 35. g4 {[%emt 0:01:58]} Ne3 {[%emt 0:01:43]} 36. Be2 {[%emt 0:04:32]} Rc3 {[%emt 0:00:27]} 37. Ra1 {[%emt 0:02:23]} Kb7 {[%emt 0:02:02]} 38. Rb1 {[%emt 0:11:15]} Nxc4 {[%emt 0:01:23]} 39. Bxc4 {[%emt 0:01:52]} Rxc4 {[%emt 0:00:25]} 40. Be3 {[%emt 0:00:38]} Rc2 {[%emt 0:01:10]} 41. Bf2 {[%emt 0:00:10]} Bf3 {[%emt 0:00:07]} 42. g5 {[%emt 0:00:23]} Be4 {[%emt 0:00:18]} 43. Rb4 {[%emt 0:00:39]} Bd5 {[%emt 0:00:20]} 44. Rd4 {[%emt 0:00:37]} Kc6 {[%emt 0:03:11]} 45. Rd3 {[%emt 0:00:19]} a5 {[%emt 0:00:34]} 46. f5 {[%emt 0:00:32]} Rc4 {[%emt 0:07:28]} 47. f6 {[%emt 0:05:03]} Rg4+ {[%emt 0:00:47]} 48. Rg3 {[%emt 0:00:11]} Rxg3+ {[%emt 0:00:54]} 49. Bxg3 {[%emt 0:00:05]} Be4 {[%emt 0:00:25]} 50. Kf2 {[%emt 0:00:58]} b5 {[%emt 0:00:26]} 51. Ke3 {[%emt 0:00:13]} Kd5 {[%emt 0:00:04]} 52. Kd2 {[%emt 0:00:41]} Kc4 {[%emt 0:00:09]} 53. Kc1 {[%emt 0:00:07]} Kb3 {[%emt 0:00:21]} 54. Be1 {[%emt 0:00:34]} a4 {[%emt 0:00:03]} 55. Bf2 {[%emt 0:00:06]} b4 {[%emt 0:00:09]} 56. Be3 {[%emt 0:00:24]} Ka2 {[%emt 0:00:17]} 0-1

[Event "XII Paracin Festival 2019"]
[Site "Paracin"]
[Date "2019.07.12"]
[Round "9.20"]
[White "Nestorovic, Dejan"]
[Black "Mullick, Raahil"]
[Result "1-0"]
[ECO "D12"]
[WhiteElo "2341"]
[BlackElo "2211"]
[Annotator "ChessBase"]
[PlyCount "77"]
[EventDate "2019.07.05"]
[EventType "swiss"]
[EventCountry "SRB"]
[SourceTitle "playchess.com"]
[Source "ChessBase"]
[SourceQuality "1"]
[TimeControl "5400+30"]

1. d4 {[%emt 0:00:00]} d5 {[%emt 0:00:00]} 2. c4 {[%emt 0:00:00]} c6 {[%emt 0:00:00]} 3. Nf3 {[%emt 0:00:00]} Nf6 {[%emt 0:00:09]} 4. e3 {[%emt 0:00:04]} Bf5 {[%emt 0:00:03]} 5. Nc3 {[%emt 0:00:19]} e6 {[%emt 0:00:04]} 6. Nh4 {[%emt 0:00:20]} Be4 {[%emt 0:00:07]} 7. f3 {[%emt 0:00:12]} Bg6 {[%emt 0:00:03]} 8. Qb3 {[%emt 0:01:27]} Qc7 {[%emt 0:00:05]} 9. g3 {[%emt 0:00:37]} Be7 10. cxd5 {[%emt 0:04:28]} cxd5 {[%emt 0:02:58]} 11. e4 dxe4 {[%emt 0:11:41]} 12. Nxg6 {[%emt 0:01:47]} hxg6 {[%emt 0:00:17]} 13. fxe4 {[%emt 0:01:57]} Nc6 {[%emt 0:02:01]} 14. Bf4 {[%emt 0:05:48]} Qd7 {[%emt 0:11:54]} 15. O-O-O {[%emt 0:13:21]} O-O {[%emt 0:02:39]} 16. d5 {[%emt 0:03:33]} exd5 {[%emt 0:04:40]} 17. exd5 {[%emt 0:00:43]} Na5 {[%emt 0:00:35]} 18. Qb5 {[%emt 0:02:17]} Qxb5 {[%emt 0:02:54]} 19. Bxb5 {[%emt 0:00:56]} a6 {[%emt 0:01:26]} 20. Rhe1 {[%emt 0:12:34]} Bb4 {[%emt 0:03:15]} 21. Bf1 {[%emt 0:00:47]} Rac8 {[%emt 0:02:00]} 22. Kc2 {[%emt 0:13:59]} Rfd8 {[%emt 0:08:50]} 23. Bh3 {[%emt 0:03:12]} Rc5 {[%emt 0:02:34]} 24. d6 {[%emt 0:03:37]} Bxc3 {[%emt 0:07:03]} 25. bxc3 {[%emt 0:00:20]} Nd5 {[%emt 0:00:08]} 26. d7 {[%emt 0:03:04]} Nc6 {[%emt 0:11:35]} 27. Re8+ {[%emt 0:02:30]} Kh7 {[%emt 0:00:01]} 28. Bd6 {[%emt 0:01:10]} Ra5 {[%emt 0:01:03]} 29. a3 {[%emt 0:05:33]} f5 {[%emt 0:02:43]} 30. Rxd8 {[%emt 0:02:45]} Ne3+ {[%emt 0:00:31]} 31. Kc1 {[%emt 0:01:38]} Nxd8 {[%emt 0:02:04]} 32. Rd3 {[%emt 0:03:52]} Rd5 {[%emt 0:01:55]} 33. Rxd5 {[%emt 0:00:11]} Nxd5 {[%emt 0:00:08]} 34. Bg2 {[%emt 0:03:42]} Nxc3 {[%emt 0:01:14]} 35. Be7 {[%emt 0:00:33]} Ne6 {[%emt 0:00:06]} 36. Kd2 {[%emt 0:02:04]} Nb5 {[%emt 0:00:24]} 37. Bxb7 {[%emt 0:01:18]} Nbc7 {[%emt 0:00:11]} 38. a4 {[%emt 0:01:12]} Kg8 {[%emt 0:00:06]} 39. Bd6 {[%emt 0:01:28]} 1-0

[Event "XII Paracin Festival 2019"]
[Site "Paracin"]
[Date "2019.07.12"]
[Round "9.23"]
[White "Lee, Jun Hyeok"]
[Black "Vidic, Teja"]
[Result "1-0"]
[ECO "A45"]
[WhiteElo "2383"]
[BlackElo "2166"]
[Annotator "RC"]
[PlyCount "41"]
[EventDate "2019.07.05"]
[EventType "swiss"]
[EventCountry "SRB"]
[SourceTitle "playchess.com"]
[Source "ChessBase"]
[SourceQuality "1"]
[TimeControl "5400+30"]

1. d4 {[%emt 0:00:00]} Nf6 {[%emt 0:01:29]} 2. Bf4 {[%emt 0:00:00]} e6 {[%emt 0:00:06]} 3. e3 {[%emt 0:00:00]} c5 {[%emt 0:00:38]} 4. Nf3 {[%emt 0:01:20]} b6 {[%emt 0:03:46]} 5. Nc3 {[%emt 0:05:53]} Nh5 {[%emt 0:08:34]} 6. Bg5 {[%emt 0:00:51]} Be7 {[%emt 0:01:02]} 7. Bxe7 {[%emt 0:02:36]} Qxe7 {[%emt 0:00:06]} 8. d5 {[%emt 0:11:31]} O-O {[%emt 0:03:55]} 9. d6 {[%emt 0:01:44]} Qe8 {[%emt 0:02:27]} 10. Ne5 {[%emt 0:08:27]} f5 {[%emt 0:14:53]} 11. Qf3 {[%emt 0:01:32]} Nc6 {[%emt 0:00:19]} 12. Bb5 {[%emt 0:00:45]} Bb7 {[%emt 0:05:55]} 13. Bxc6 {[%emt 0:00:06]} Bxc6 {[%emt 0:00:13]} 14. Nxc6 {[%emt 0:00:06]} dxc6 15. d7 {[%emt 0:00:49]} Qf7 {[%emt 0:01:17]} 16. Qxc6 {[%emt 0:02:39]} Rad8 {[%emt 0:00:13]} 17. O-O-O {[%emt 0:02:01]} Nf6 {[%emt 0:02:28]} 18. Nb5 {[%emt 0:14:41]} Nd5 {[%emt 0:19:04]} 19. Nc7 {[%emt 0:01:31]} Qxd7 {[%emt 0:05:48]} 20. Qxe6+ {[%emt 0:01:05]} Rf7 {[%emt 0:01:08]} 21. Qxd5 {[%emt 0:00:06]} 1-0

[Event "XII Paracin Festival 2019"]
[Site "Paracin"]
[Date "2019.07.12"]
[Round "9.24"]
[White "Raahul V S"]
[Black "Franklin, Samuel G A"]
[Result "1/2-1/2"]
[ECO "E94"]
[WhiteElo "2251"]
[BlackElo "2339"]
[Annotator "ChessBase"]
[PlyCount "106"]
[EventDate "2019.07.05"]
[EventType "swiss"]
[EventCountry "SRB"]
[SourceTitle "playchess.com"]
[Source "ChessBase"]
[SourceQuality "1"]
[TimeControl "5400+30"]

1. c4 {[%emt 0:00:00]} Nf6 {[%emt 0:01:45]} 2. Nc3 {[%emt 0:00:00]} g6 {[%emt 0:00:04]} 3. e4 {[%emt 0:00:00]} d6 {[%emt 0:00:02]} 4. d4 {[%emt 0:00:00]} Bg7 {[%emt 0:00:12]} 5. Nf3 {[%emt 0:00:04]} O-O {[%emt 0:00:09]} 6. Be2 {[%emt 0:00:03]} e5 {[%emt 0:00:11]} 7. O-O {[%emt 0:00:06]} Nbd7 {[%emt 0:01:33]} 8. Be3 {[%emt 0:03:20]} Ng4 {[%emt 0:01:16]} 9. Bg5 {[%emt 0:00:03]} f6 {[%emt 0:00:08]} 10. Bh4 {[%emt 0:00:37]} h5 {[%emt 0:02:44]} 11. b4 {[%emt 0:02:35]} Nh6 {[%emt 0:09:14]} 12. Bg3 {[%emt 0:02:44]} Nf7 {[%emt 0:01:22]} 13. c5 {[%emt 0:00:46]} dxc5 {[%emt 0:06:29]} 14. dxc5 {[%emt 0:01:02]} c6 {[%emt 0:00:25]} 15. Bc4 {[%emt 0:05:39]} Qe7 {[%emt 0:00:19]} 16. Qb3 {[%emt 0:01:56]} b5 {[%emt 0:08:02]} 17. cxb6 {[%emt 0:00:28]} Nxb6 {[%emt 0:00:25]} 18. Na4 {[%emt 0:02:16]} Kh7 {[%emt 0:03:54]} 19. Bxf7 {[%emt 0:08:11]} Rxf7 {[%emt 0:00:00]} 20. Nc5 {[%emt 0:00:00]} Nd7 {[%emt 0:09:35]} 21. Rfc1 {[%emt 0:01:27]} Bh6 {[%emt 0:03:35]} 22. Rc2 {[%emt 0:00:19]} a5 {[%emt 0:02:02]} 23. Ne6 {[%emt 0:07:58]} a4 {[%emt 0:06:42]} 24. Qc4 {[%emt 0:00:02]} Nb6 {[%emt 0:02:06]} 25. Qc5 {[%emt 0:00:16]} Qxe6 {[%emt 0:05:32]} 26. Qxb6 {[%emt 0:00:02]} Ra6 {[%emt 0:00:25]} 27. Qc5 {[%emt 0:00:02]} Bf8 {[%emt 0:06:12]} 28. Qc3 {[%emt 0:00:05]} Rb6 {[%emt 0:03:10]} 29. a3 {[%emt 0:00:17]} Kg7 {[%emt 0:03:54]} 30. Nd2 {[%emt 0:04:54]} c5 {[%emt 0:06:15]} 31. f3 {[%emt 0:00:23]} Rc6 {[%emt 0:07:10]} 32. Rb1 {[%emt 0:01:11]} Rb7 {[%emt 0:03:12]} 33. Bf2 {[%emt 0:00:19]} Bd7 {[%emt 0:01:02]} 34. bxc5 {[%emt 0:00:13]} Rxb1+ {[%emt 0:01:36]} 35. Nxb1 {[%emt 0:00:01]} Rc8 {[%emt 0:00:02]} 36. Qc4 {[%emt 0:02:38]} Qxc4 {[%emt 0:01:32]} 37. Rxc4 {[%emt 0:00:01]} Bb5 {[%emt 0:00:06]} 38. Rc1 {[%emt 0:00:12]} Kf7 {[%emt 0:00:13]} 39. g3 {[%emt 0:00:19]} Ke6 {[%emt 0:00:16]} 40. Kg2 {[%emt 0:00:16]} Bc6 {[%emt 0:01:55]} 41. Nc3 {[%emt 0:01:54]} Rb8 {[%emt 0:00:03]} 42. Rb1 {[%emt 0:00:40]} Rxb1 {[%emt 0:00:41]} 43. Nxb1 {[%emt 0:00:01]} f5 {[%emt 0:00:02]} 44. Nc3 {[%emt 0:00:41]} Bh6 {[%emt 0:00:13]} 45. Kf1 {[%emt 0:09:17]} Bc1 {[%emt 0:00:22]} 46. Ke2 {[%emt 0:00:59]} Bxa3 {[%emt 0:00:13]} 47. Kd3 {[%emt 0:00:06]} Bb4 {[%emt 0:00:50]} 48. Na2 {[%emt 0:01:55]} Bb5+ {[%emt 0:00:30]} 49. Kc2 {[%emt 0:00:05]} Ba5 {[%emt 0:00:16]} 50. Be3 {[%emt 0:01:32]} Bc6 {[%emt 0:00:56]} 51. Kd3 {[%emt 0:00:36]} Bb5+ {[%emt 0:00:04]} 52. Kc2 {[%emt 0:00:04]} Bc6 {[%emt 0:00:03]} 53. Kd3 {[%emt 0:00:05]} Bb5+ {[%emt 0:01:31]} 1/2-1/2

[Event "XII Paracin Festival 2019"]
[Site "Paracin"]
[Date "2019.07.12"]
[Round "9.25"]
[White "Audi Ameya"]
[Black "Gallevci, Yagiz"]
[Result "1-0"]
[ECO "B10"]
[WhiteElo "2328"]
[BlackElo "2036"]
[Annotator "ChessBase"]
[PlyCount "69"]
[EventDate "2019.07.05"]
[EventType "swiss"]
[EventCountry "SRB"]
[SourceTitle "playchess.com"]
[Source "ChessBase"]
[SourceQuality "1"]
[TimeControl "5400+30"]

1. e4 {[%emt 0:00:00]} c6 {[%emt 0:00:00]} 2. Nf3 {[%emt 0:00:00]} d5 {[%emt 0:00:00]} 3. exd5 {[%emt 0:00:00]} cxd5 {[%emt 0:00:00]} 4. Ne5 {[%emt 0:00:00]} Nf6 {[%emt 0:00:00]} 5. d4 {[%emt 0:00:00]} g6 {[%emt 0:00:28]} 6. Bb5+ {[%emt 0:00:00]} Nbd7 {[%emt 0:00:07]} 7. O-O {[%emt 0:00:00]} Bg7 {[%emt 0:00:04]} 8. Re1 {[%emt 0:00:00]} O-O {[%emt 0:00:08]} 9. Nf3 {[%emt 0:00:04]} Nb6 {[%emt 0:01:54]} 10. Nbd2 {[%emt 0:05:30]} Bf5 {[%emt 0:04:25]} 11. h3 {[%emt 0:00:19]} Rc8 {[%emt 0:04:06]} 12. c3 {[%emt 0:00:04]} a6 {[%emt 0:07:22]} 13. Bf1 {[%emt 0:00:04]} Qd6 {[%emt 0:10:17]} 14. Ne5 {[%emt 0:08:52]} Nfd7 {[%emt 0:01:44]} 15. Ndf3 {[%emt 0:20:44]} f6 {[%emt 0:03:26]} 16. Ng4 {[%emt 0:00:13]} e5 {[%emt 0:02:31]} 17. Nh6+ {[%emt 0:00:44]} Bxh6 {[%emt 0:01:54]} 18. Bxh6 {[%emt 0:00:04]} Rfe8 {[%emt 0:03:14]} 19. dxe5 {[%emt 0:00:13]} fxe5 {[%emt 0:00:19]} 20. Qd2 {[%emt 0:26:51]} Nf6 {[%emt 0:10:26]} 21. Rad1 {[%emt 0:08:33]} Nbd7 {[%emt 0:04:22]} 22. g4 {[%emt 0:03:47]} Be6 {[%emt 0:01:29]} 23. Bg2 {[%emt 0:00:26]} Kh8 {[%emt 0:04:59]} 24. Nxe5 {[%emt 0:05:24]} Nxe5 {[%emt 0:03:16]} 25. Rxe5 {[%emt 0:00:03]} Nxg4 {[%emt 0:03:42]} 26. Rxe6 {[%emt 0:00:08]} Qxe6 {[%emt 0:10:21]} 27. hxg4 {[%emt 0:00:44]} Rc4 {[%emt 0:01:38]} 28. Qxd5 {[%emt 0:01:57]} Qxd5 {[%emt 0:00:50]} 29. Rxd5 {[%emt 0:01:03]} Rxg4 {[%emt 0:00:13]} 30. Kf1 {[%emt 0:01:29]} Rh4 {[%emt 0:02:29]} 31. Bg5 {[%emt 0:00:11]} Rh5 {[%emt 0:00:29]} 32. Bf6+ {[%emt 0:00:28]} Kg8 {[%emt 0:00:05]} 33. Rd7 {[%emt 0:00:19]} Re6 {[%emt 0:00:01]} 34. Bd4 {[%emt 0:00:55]} Kf8 {[%emt 0:00:17]} 35. Bd5 {[%emt 0:02:47]} 1-0

[Event "XII Paracin Festival 2019"]
[Site "Paracin"]
[Date "2019.07.12"]
[Round "9.26"]
[White "Kecskemeti, Arpad"]
[Black "Chen, Peng"]
[Result "0-1"]
[ECO "B90"]
[WhiteElo "2230"]
[BlackElo "2328"]
[Annotator "ChessBase"]
[PlyCount "44"]
[EventDate "2019.07.05"]
[EventType "swiss"]
[EventCountry "SRB"]
[SourceTitle "playchess.com"]
[Source "ChessBase"]
[SourceQuality "1"]
[TimeControl "5400+30"]

1. e4 {[%emt 0:00:56]} c5 {[%emt 0:00:00]} 2. Nf3 {[%emt 0:00:07]} a6 {[%emt 0:00:00]} 3. Nc3 {[%emt 0:02:00]} d6 {[%emt 0:00:16]} 4. d4 {[%emt 0:00:08]} cxd4 {[%emt 0:00:04]} 5. Nxd4 {[%emt 0:00:05]} Nf6 {[%emt 0:00:03]} 6. Be3 {[%emt 0:00:29]} e6 {[%emt 0:00:06]} 7. a4 {[%emt 0:05:23]} b6 {[%emt 0:01:11]} 8. Bd3 {[%emt 0:01:01]} Bb7 {[%emt 0:04:16]} 9. f4 {[%emt 0:01:24]} Nbd7 {[%emt 0:00:16]} 10. Qf3 {[%emt 0:03:18]} g6 {[%emt 0:08:50]} 11. h3 {[%emt 0:04:48]} Bg7 {[%emt 0:01:16]} 12. O-O {[%emt 0:01:47]} O-O {[%emt 0:00:18]} 13. Rad1 {[%emt 0:11:42]} Qc7 {[%emt 0:05:26]} 14. g4 {[%emt 0:11:04]} e5 {[%emt 0:03:34]} 15. Nde2 {[%emt 0:00:53]} exf4 {[%emt 0:03:50]} 16. Nxf4 {[%emt 0:01:05]} h6 {[%emt 0:00:33]} 17. Bd4 {[%emt 0:06:11]} Rae8 {[%emt 0:17:56]} 18. Rde1 {[%emt 0:15:37]} Nxe4 {[%emt 0:04:34]} 19. Bxe4 {[%emt 0:18:42]} Bxd4+ {[%emt 0:00:17]} 20. Kg2 {[%emt 0:01:37]} Bxc3 {[%emt 0:00:51]} 21. bxc3 {[%emt 0:00:20]} Rxe4 {[%emt 0:00:24]} 22. Rxe4 {[%emt 0:00:31]} Nf6 {[%emt 0:00:26]} 0-1

[Event "XII Paracin Festival 2019"]
[Site "Paracin"]
[Date "2019.07.12"]
[Round "9.27"]
[White "Peng, Shunkai"]
[Black "Tanishka Kotia"]
[Result "1-0"]
[ECO "B01"]
[WhiteElo "2300"]
[BlackElo "1942"]
[Annotator "NA"]
[PlyCount "63"]
[EventDate "2019.07.05"]
[EventType "swiss"]
[EventCountry "SRB"]
[SourceTitle "playchess.com"]
[Source "ChessBase"]
[SourceQuality "1"]
[TimeControl "5400+30"]

1. e4 d5 2. exd5 Nf6 3. Nf3 Qxd5 4. d4 Bg4 5. Be2 Nc6 6. O-O O-O-O 7. Be3 e5 8. c4 Qa5 9. d5 Bxf3 10. Bxf3 Bc5 11. Bd2 Bb4 12. dxc6 Bxd2 13. Qc2 e4 14. Bxe4 Nxe4 15. Qxe4 Rhe8 16. Qc2 Bf4 17. Nc3 bxc6 18. Rad1 Qh5 19. g3 Re6 20. Rxd8+ Kxd8 21. Qd1+ Qxd1 22. Rxd1+ Bd6 23. c5 Ke7 24. cxd6+ cxd6 25. Rd4 Kf6 26. Kf1 d5 27. Ra4 Ke5 28. Rxa7 d4 29. Nb1 Kf6 30. Nd2 c5 31. b3 Rc6 32. Ke2 1-0

[Event "XII Paracin Festival 2019"]
[Site "Paracin"]
[Date "2019.07.12"]
[Round "9.28"]
[White "Boldoo, Erdenepurev"]
[Black "Kanov, Nikola"]
[Result "1-0"]
[ECO "A65"]
[WhiteElo "2295"]
[BlackElo "1908"]
[Annotator "NA"]
[PlyCount "103"]
[EventDate "2019.07.05"]
[EventType "swiss"]
[EventCountry "SRB"]
[SourceTitle "playchess.com"]
[Source "ChessBase"]
[SourceQuality "1"]
[TimeControl "5400+30"]

1. d4 {[%emt 0:00:00]} Nf6 {[%emt 0:00:00]} 2. c4 {[%emt 0:00:00]} c5 {[%emt 0:00:00]} 3. d5 {[%emt 0:00:00]} e6 {[%emt 0:00:00]} 4. Nc3 {[%emt 0:00:11]} exd5 {[%emt 0:00:00]} 5. cxd5 {[%emt 0:00:04]} d6 {[%emt 0:00:05]} 6. e4 {[%emt 0:00:34]} g6 {[%emt 0:00:17]} 7. Bd3 {[%emt 0:00:23]} Bg7 {[%emt 0:00:10]} 8. h3 {[%emt 0:00:12]} O-O {[%emt 0:00:06]} 9. Nf3 {[%emt 0:00:03]} b5 {[%emt 0:00:49]} 10. Nxb5 Nxe4 {[%emt 0:09:06]} 11. Bxe4 {[%emt 0:00:35]} Re8 {[%emt 0:00:02]} 12. Ng5 f5 {[%emt 0:00:13]} 13. O-O {[%emt 0:11:06]} fxe4 {[%emt 0:28:47]} 14. Re1 {[%emt 0:03:29]} a6 15. Nc3 e3 {[%emt 0:04:44]} 16. Bxe3 {[%emt 0:01:19]} h6 {[%emt 0:00:51]} 17. Ne6 {[%emt 0:03:09]} Bxe6 {[%emt 0:00:54]} 18. dxe6 {[%emt 0:00:02]} Nc6 {[%emt 0:00:29]} 19. Ne4 {[%emt 0:05:58]} Nd4 {[%emt 0:03:06]} 20. Bxd4 Bxd4 21. Qg4 {[%emt 0:00:57]} Kh7 {[%emt 0:03:11]} 22. Rad1 {[%emt 0:00:14]} Ra7 {[%emt 0:00:30]} 23. b4 {[%emt 0:02:36]} Qe7 {[%emt 0:02:20]} 24. Kh1 {[%emt 0:04:04]} Kg7 {[%emt 0:05:37]} 25. Nxd6 {[%emt 0:02:21]} Qxd6 {[%emt 0:05:31]} 26. bxc5 {[%emt 0:00:01]} Qxc5 {[%emt 0:00:51]} 27. Qxd4+ {[%emt 0:00:02]} Qxd4 {[%emt 0:00:18]} 28. Rxd4 {[%emt 0:00:04]} Rb7 {[%emt 0:05:30]} 29. Re2 {[%emt 0:02:18]} Ree7 {[%emt 0:00:47]} 30. Rd6 {[%emt 0:00:15]} a5 {[%emt 0:00:12]} 31. Ra6 {[%emt 0:03:10]} Rb5 {[%emt 0:01:27]} 32. g3 {[%emt 0:01:51]} Kf6 {[%emt 0:00:09]} 33. Kg2 {[%emt 0:00:09]} Rc5 {[%emt 0:01:12]} 34. Re3 {[%emt 0:00:27]} Rd5 {[%emt 0:02:31]} 35. Ra3 {[%emt 0:00:40]} Rxe6 {[%emt 0:00:31]} 36. R3xa5 {[%emt 0:00:12]} Rxa5 {[%emt 0:00:30]} 37. Rxa5 {[%emt 0:00:01]} Re2 {[%emt 0:00:17]} 38. Ra8 {[%emt 0:00:40]} Rc2 {[%emt 0:00:18]} 39. a4 {[%emt 0:00:05]} Ra2 {[%emt 0:00:03]} 40. a5 {[%emt 0:00:05]} Ra3 {[%emt 0:00:18]} 41. a6 {[%emt 0:00:04]} Kg7 {[%emt 0:00:08]} 42. a7 {[%emt 0:00:22]} Kh7 {[%emt 0:00:05]} 43. f4 {[%emt 0:00:05]} Kg7 {[%emt 0:00:22]} 44. g4 {[%emt 0:00:06]} Ra2+ {[%emt 0:00:44]} 45. Kf3 {[%emt 0:00:10]} Ra3+ {[%emt 0:00:04]} 46. Ke4 {[%emt 0:00:04]} Ra4+ {[%emt 0:00:19]} 47. Kd3 {[%emt 0:00:03]} Ra3+ {[%emt 0:00:30]} 48. Kc2 {[%emt 0:00:09]} Ra2+ {[%emt 0:00:20]} 49. Kb3 {[%emt 0:00:05]} Ra1 {[%emt 0:00:06]} 50. f5 {[%emt 0:00:07]} Rb1+ {[%emt 0:00:19]} 51. Kc2 {[%emt 0:00:06]} Rb7 {[%emt 0:00:18]} 52. Rg8+ {[%emt 0:00:15]} 1-0

[Event "XII Paracin Festival 2019"]
[Site "Paracin"]
[Date "2019.07.12"]
[Round "9.29"]
[White "Banovic, Ivan"]
[Black "Gan-Od, Sereenen"]
[Result "0-1"]
[ECO "A39"]
[WhiteElo "2227"]
[BlackElo "2294"]
[Annotator "NA"]
[PlyCount "106"]
[EventDate "2019.07.05"]
[EventType "swiss"]
[EventCountry "SRB"]
[SourceTitle "playchess.com"]
[Source "ChessBase"]
[SourceQuality "1"]
[TimeControl "5400+30"]

1. Nf3 {[%emt 0:00:00]} Nf6 {[%emt 0:00:00]} 2. c4 {[%emt 0:00:03]} g6 {[%emt 0:00:00]} 3. Nc3 {[%emt 0:00:13]} Bg7 {[%emt 0:00:00]} 4. g3 {[%emt 0:01:13]} O-O {[%emt 0:00:00]} 5. Bg2 {[%emt 0:00:06]} c5 {[%emt 0:00:00]} 6. O-O {[%emt 0:00:30]} Nc6 {[%emt 0:00:00]} 7. d4 {[%emt 0:06:55]} cxd4 {[%emt 0:01:49]} 8. Nxd4 {[%emt 0:00:07]} Qa5 {[%emt 0:00:01]} 9. Nb3 {[%emt 0:05:36]} Qh5 {[%emt 0:01:01]} 10. e3 {[%emt 0:02:53]} Qxd1 {[%emt 0:01:44]} 11. Rxd1 {[%emt 0:01:58]} d6 {[%emt 0:01:53]} 12. c5 {[%emt 0:05:28]} dxc5 {[%emt 0:09:24]} 13. Nxc5 {[%emt 0:00:25]} e5 {[%emt 0:01:47]} 14. Rb1 {[%emt 0:07:27]} Rb8 {[%emt 0:03:49]} 15. b3 {[%emt 0:04:24]} Bg4 {[%emt 0:04:37]} 16. f3 {[%emt 0:06:56]} Bf5 {[%emt 0:01:31]} 17. e4 {[%emt 0:00:43]} Bc8 {[%emt 0:00:06]} 18. Bf1 {[%emt 0:16:28]} Nd4 {[%emt 0:01:14]} 19. Kf2 {[%emt 0:00:40]} b6 {[%emt 0:02:34]} 20. Na6 {[%emt 0:00:44]} Bxa6 {[%emt 0:01:30]} 21. Bxa6 {[%emt 0:00:17]} b5 {[%emt 0:00:19]} 22. a4 {[%emt 0:03:31]} bxa4 {[%emt 0:05:03]} 23. bxa4 {[%emt 0:00:12]} Rxb1 {[%emt 0:00:11]} 24. Nxb1 {[%emt 0:00:05]} Rb8 {[%emt 0:00:10]} 25. Nc3 {[%emt 0:05:28]} Rb3 {[%emt 0:03:32]} 26. Bd2 {[%emt 0:11:21]} Nd7 {[%emt 0:02:56]} 27. Rb1 {[%emt 0:01:49]} Nc5 {[%emt 0:01:56]} 28. Be2 {[%emt 0:01:14]} Rxb1 {[%emt 0:00:33]} 29. Nxb1 {[%emt 0:00:03]} Nxa4 {[%emt 0:00:04]} 30. Bc4 {[%emt 0:01:22]} Bf8 {[%emt 0:01:15]} 31. Ba5 {[%emt 0:02:40]} Bc5 {[%emt 0:01:40]} 32. Kg2 {[%emt 0:00:11]} Nb6 {[%emt 0:01:28]} 33. Ba2 {[%emt 0:00:36]} Nc6 {[%emt 0:00:46]} 34. Bd2 {[%emt 0:00:56]} Kg7 {[%emt 0:01:18]} 35. Nc3 {[%emt 0:00:21]} Bb4 {[%emt 0:00:11]} 36. Kf1 {[%emt 0:01:17]} Nd4 {[%emt 0:00:22]} 37. Kf2 {[%emt 0:00:22]} a5 {[%emt 0:00:20]} 38. Nb1 {[%emt 0:00:16]} Bc5 {[%emt 0:00:20]} 39. Be3 {[%emt 0:00:13]} a4 {[%emt 0:00:21]} 40. Nc3 {[%emt 0:00:37]} a3 {[%emt 0:00:38]} 41. Nd5 {[%emt 0:00:50]} Nd7 {[%emt 0:00:18]} 42. Bxd4 {[%emt 0:00:59]} Bxd4+ {[%emt 0:00:10]} 43. Ke2 {[%emt 0:00:08]} Nc5 {[%emt 0:00:27]} 44. Kd2 {[%emt 0:00:44]} Bg1 {[%emt 0:02:44]} 45. Ke2 {[%emt 0:00:55]} h5 {[%emt 0:01:39]} 46. h4 {[%emt 0:00:34]} Bd4 {[%emt 0:00:12]} 47. Nc7 {[%emt 0:00:14]} Nb7 {[%emt 0:06:24]} 48. f4 {[%emt 0:00:41]} Nd6 {[%emt 0:02:13]} 49. Kf3 {[%emt 0:00:33]} Bb2 {[%emt 0:00:31]} 50. Bd5 {[%emt 0:02:05]} Kf8 {[%emt 0:00:37]} 51. g4 {[%emt 0:02:44]} hxg4+ {[%emt 0:01:36]} 52. Kxg4 {[%emt 0:00:05]} Nxe4 {[%emt 0:00:21]} 53. Kf3 {[%emt 0:00:56]} Nc3 {[%emt 0:01:36]} 0-1